fUSD/lending_fUSD_20250708
["ID","MTS","AMOUNT","RATE_DAILY","PERIOD"]
[370403151,1752000671324,-644.72,0.00024749,2]
[370403152,1752000671333,-20000.0,0.0002475,6]
[370403153,1752000671343,-500.0,0.00024762,2]
[370403154,1752000671352,-500.0,0.00024762,2]
[370403155,1752000671361,-466.0,0.00024762,2]
[370403156,1752000671370,-500.0,0.00024762,2]
[370403157,1752000671380,-613.60834804,0.00024762,11]
[370403158,1752000671391,-162.21338696,0.0002479,2]
[370403159,1752000671401,-500.0,0.00024795,2]
[370403160,1752000671410,-226.07185963,0.00024795,4]
[370403161,1752000671419,-253.08561621,0.00024795,4]
[370403162,1752000671429,-182.427274,0.00024795,4]
[370403163,1752000671440,-154.20834802,0.00024795,4]
[370403164,1752000671450,-152.59048816,0.00024795,4]
[370403165,1752000671459,-755.14,0.00024798,2]
[370403166,1752000671472,-338.12241828,0.00024799,2]
[370403167,1752000671482,-300.0,0.00024799,10]
[370403168,1752000671491,-300.0,0.00024799,10]
[370403169,1752000671500,-3349.74,0.00024799,2]
[370403170,1752000671510,-3349.74,0.00024799,2]
[370403171,1752000671519,-3349.74,0.00024799,2]
[370403172,1752000671528,-500.0,0.00024799,2]
[370403173,1752000671737,-500.0,0.00024799,2]
[370403174,1752000671747,-500.0,0.00024799,2]
[370403175,1752000671758,-1261.09,0.00024799,2]
[370403176,1752000671768,-1261.09,0.00024799,2]
[370403177,1752000671778,-1261.09,0.00024799,2]
[370403178,1752000671787,-1261.09,0.00024799,2]
[370403179,1752000671796,-1261.09,0.00024799,2]
[370403180,1752000671806,-1261.09,0.00024799,2]
[370403181,1752000671815,-1261.3,0.00024799,2]
[370403182,1752000671824,-644.72,0.00024799,2]
[370403183,1752000671834,-644.72,0.00024799,2]
[370403184,1752000671843,-644.72,0.00024799,2]
[370403185,1752000671852,-755.14,0.00024799,2]
[370403186,1752000671862,-755.14,0.00024799,2]
[370403187,1752000671871,-755.14,0.00024799,2]
[370403188,1752000671881,-755.14,0.00024799,2]
[370403189,1752000671891,-755.14,0.00024799,2]
[370403190,1752000671900,-755.19440836,0.00024799,2]
[370403191,1752000671910,-150.0,0.00024799,2]
[370403192,1752000671919,-10000.0,0.000248,2]
[370403193,1752000671928,-600.0,0.000248,9]
[370403194,1752000671938,-612006.918244,0.000248,2]
[370403195,1752000671947,-685.31574937,0.00024802,2]
[370403196,1752000671957,-395.46,0.0002481,2]
[370403197,1752000671968,-207.0,0.0002483,2]
[370403198,1752000671978,-331.0,0.0002483,2]
[370403199,1752000671988,-349.54437682,0.0002484,2]
[370403200,1752000671997,-1131.0,0.00024852,2]
[370403201,1752000672007,-1603.0,0.00024852,2]
[370403202,1752000672017,-500.0,0.00024852,2]
[370403203,1752000672026,-204.9622162,0.00024852,2]
[370403204,1752000672036,-838.0,0.00024852,2]
[370403205,1752000672045,-1278.0,0.00024852,2]
[370403206,1752000672056,-493.0,0.00024852,2]
[370403207,1752000672065,-150.0,0.00024861,2]
[370403208,1752000672075,-919.06,0.00024861,2]
[370403209,1752000672085,-480.02801873,0.00024862,7]
[370403210,1752000672095,-500.0,0.00024862,7]
[370403211,1752000672104,-150.0,0.00024862,2]
[370403212,1752000672113,-250.0,0.00024866,2]
[370403213,1752000672123,-150.0,0.00024866,2]
[370403214,1752000672133,-500.0,0.00024866,2]
[370403215,1752000672143,-500.0,0.0002487,2]
[370403216,1752000672152,-346.0,0.00024877,2]
[370403217,1752000672162,-260.06747,0.0002489,2]
[370403218,1752000672171,-644.72,0.00024898,2]
[370403219,1752000672180,-150.0,0.00024898,2]
[370403220,1752000672190,-63623.68619198,0.00024899,2]
[370403221,1752000672200,-3349.74,0.00024899,2]
[370403222,1752000672211,-3349.74,0.00024899,2]
[370403223,1752000672222,-3349.74,0.00024899,2]
[370403224,1752000672232,-3349.74,0.00024899,2]
[370403225,1752000672241,-3349.74,0.00024899,2]
[370403226,1752000672252,-3349.8489034,0.00024899,2]
[370403227,1752000672262,-500.0,0.00024899,2]
[370403228,1752000672272,-500.0,0.00024899,2]
[370403229,1752000672283,-500.0,0.00024899,2]
[370403230,1752000672294,-500.0,0.00024899,2]
[370403231,1752000672305,-490.41423178,0.00024899,2]
[370403232,1752000672314,-286.83440096,0.00024899,10]
[370403233,1752000672324,-155.83741387,0.00024899,2]
[370403234,1752000672333,-300.0,0.00024899,10]
[370403235,1752000672343,-600.0,0.000249,9]
[370403236,1752000672352,-611539.176021,0.000249,2]
[370403237,1752000672362,-502.0,0.00024913,5]
[370403238,1752000672371,-150.13295585,0.00024921,2]
[370403239,1752000672381,-537.83829142,0.00024921,2]
[370403240,1752000672397,-500.0,0.00024921,2]
[370403241,1752000672406,-302.83721313,0.00024921,2]
[370403242,1752000672416,-227.27709244,0.00024921,2]
[370403243,1752000672425,-501.70581406,0.00024921,2]
[370403244,1752000672435,-1000.0,0.00024921,2]
[370403245,1752000672444,-1000.0,0.00024921,2]
[370403246,1752000672453,-644.72,0.00024929,2]
[370403247,1752000672463,-300.0,0.0002493,10]
[370403248,1752000672474,-300.0,0.0002493,10]
[370403249,1752000672483,-300.0,0.0002493,10]
[370403250,1752000672493,-300.0,0.0002493,10]
[370403251,1752000672502,-644.72,0.0002493,2]
[370403252,1752000672511,-644.72,0.0002493,2]
[370403253,1752000672521,-644.72,0.0002493,2]
[370403254,1752000672530,-644.72,0.0002493,2]
[370403255,1752000672539,-644.85,0.0002493,2]
[370403256,1752000672548,-231.42827033,0.00024931,2]
[370403257,1752000672558,-460.0,0.00024931,2]
[370403258,1752000672567,-460.0,0.00024931,2]
[370403259,1752000672576,-1830.22,0.00024931,2]
[370403260,1752000672586,-2888.451366,0.00024931,2]
[370403261,1752000672606,-298.953297,0.00024931,2]
[370403262,1752000672616,-3054.552672,0.00024931,2]
[370403263,1752000672626,-3184.891081,0.00024931,2]
[370403264,1752000672636,-161.933036,0.00024931,2]
[370403265,1752000672646,-771.81,0.00024931,2]
[370403266,1752000672655,-552.41,0.00024931,2]
[370403267,1752000672665,-1017.4,0.00024931,2]
[370403268,1752000672674,-460.0,0.00024931,2]
[370403269,1752000672684,-460.0,0.00024931,2]
[370403270,1752000672694,-460.0,0.00024931,2]
[370403271,1752000672704,-460.0,0.00024931,2]
[370403272,1752000672715,-460.0,0.00024931,2]
[370403273,1752000672724,-460.0,0.00024931,2]
[370403274,1752000672734,-819.13,0.00024931,2]
[370403275,1752000672743,-687.86,0.00024931,2]
[370403276,1752000672753,-460.0,0.00024931,2]
[370403277,1752000672763,-896.97,0.00024931,2]
[370403278,1752000672773,-859.59,0.00024931,2]
[370403279,1752000672782,-460.0,0.00024931,2]
[370403280,1752000672792,-460.0,0.00024931,2]
[370403281,1752000672802,-649.21,0.00024931,2]
[370403282,1752000672811,-460.0,0.00024931,2]
[370403283,1752000672822,-460.0,0.00024931,2]
[370403284,1752000672831,-460.0,0.00024931,2]
[370403285,1752000672841,-925.68,0.00024931,2]
[370403286,1752000672851,-460.0,0.00024931,2]
[370403287,1752000672861,-392.969957,0.00024931,2]
[370403288,1752000672871,-784.14,0.00024931,2]
[370403289,1752000672881,-460.0,0.00024931,2]
[370403290,1752000672891,-460.0,0.00024931,2]
[370403291,1752000672902,-460.0,0.00024931,2]
[370403292,1752000672912,-397.55825609,0.00024931,2]
[370403293,1752000672922,-460.0,0.00024931,2]
[370403294,1752000672933,-460.0,0.00024931,2]
[370403295,1752000672945,-460.0,0.00024931,2]
[370403296,1752000672955,-460.0,0.00024931,2]
[370403297,1752000672966,-589.75,0.00024931,2]
[370403298,1752000672976,-881.52,0.00024931,2]
[370403299,1752000672985,-1109.57,0.00024931,2]
[370403300,1752000672995,-460.0,0.00024931,2]
[370403301,1752000673006,-714.8,0.00024931,2]
[370403302,1752000673015,-460.0,0.00024931,2]
[370403303,1752000673031,-594.6725,0.00024931,2]
[370403304,1752000673041,-158.96693082,0.00024931,2]
[370403305,1752000673051,-460.0,0.00024931,2]
[370403306,1752000673061,-367.46664549,0.00024931,2]
[370403307,1752000673072,-460.0,0.00024931,2]
[370403308,1752000673086,-827.79,0.00024931,2]
[370403309,1752000673098,-356.22790495,0.00024931,2]
[370403310,1752000673109,-608.5,0.00024931,2]
[370403311,1752000673120,-460.0,0.00024931,2]
[370403312,1752000673131,-460.0,0.00024931,2]
[370403313,1752000673142,-968.06,0.00024931,2]
[370403314,1752000673151,-580.0,0.00024931,2]
[370403315,1752000673162,-387.43028077,0.00024931,2]
[370403316,1752000673172,-460.0,0.00024931,2]
[370403317,1752000673182,-460.0,0.00024931,2]
[370403318,1752000673191,-460.0,0.00024931,2]
[370403319,1752000673201,-460.0,0.00024931,2]
[370403320,1752000673211,-460.0,0.00024931,2]
[370403321,1752000673222,-460.0,0.00024931,2]
[370403322,1752000673232,-460.0,0.00024931,2]
[370403323,1752000673242,-1219.9,0.00024931,2]
[370403324,1752000673252,-460.0,0.00024931,2]
[370403325,1752000673262,-460.0,0.00024931,2]
[370403326,1752000673273,-682.38,0.00024931,2]
[370403327,1752000673283,-640.26,0.00024931,2]
[370403328,1752000673293,-944.22,0.00024931,2]
[370403329,1752000673304,-914.55,0.00024931,2]
[370403330,1752000673315,-1455.86,0.00024931,2]
[370403331,1752000673325,-460.0,0.00024931,2]
[370403332,1752000673335,-460.0,0.00024931,2]
[370403333,1752000673344,-460.0,0.00024931,2]
[370403334,1752000673354,-460.0,0.00024931,2]
[370403335,1752000673364,-1108.18,0.00024931,2]
[370403336,1752000673373,-460.0,0.00024931,2]
[370403337,1752000673385,-460.0,0.00024931,2]
[370403338,1752000673395,-460.0,0.00024931,2]
[370403339,1752000673405,-1117.77,0.00024931,2]
[370403340,1752000673415,-460.0,0.00024931,2]
[370403341,1752000673426,-460.0,0.00024931,2]
[370403342,1752000673435,-460.0,0.00024931,2]
[370403343,1752000673447,-558.68,0.00024931,2]
[370403344,1752000673462,-460.0,0.00024931,2]
[370403345,1752000673474,-460.0,0.00024931,2]
[370403346,1752000673484,-460.0,0.00024931,2]
[370403347,1752000673496,-460.0,0.00024931,2]
[370403348,1752000673508,-619.02,0.00024931,2]
[370403349,1752000673519,-460.0,0.00024931,2]
[370403350,1752000673531,-1202.76,0.00024931,2]
[370403351,1752000673542,-586.62,0.00024931,2]
[370403352,1752000673553,-460.0,0.00024931,2]
[370403353,1752000673564,-460.0,0.00024931,2]
[370403354,1752000673576,-460.0,0.00024931,2]
[370403355,1752000673587,-1253.26,0.00024931,2]
[370403356,1752000673600,-556.86,0.00024931,2]
[370403357,1752000673611,-460.0,0.00024931,2]
[370403358,1752000673621,-460.0,0.00024931,2]
[370403359,1752000673632,-460.0,0.00024931,2]
[370403360,1752000673644,-460.0,0.00024931,2]
[370403361,1752000673654,-460.0,0.00024931,2]
[370403362,1752000673664,-175.97667447,0.00024931,2]
[370403363,1752000673675,-1011.19,0.00024931,2]
[370403364,1752000673685,-954.26,0.00024931,2]
[370403365,1752000673696,-460.0,0.00024931,2]
[370403366,1752000673707,-460.0,0.00024931,2]
[370403367,1752000673719,-916.17,0.00024931,2]
[370403368,1752000673729,-299.62952695,0.00024931,2]
[370403369,1752000673739,-460.0,0.00024931,2]
[370403370,1752000673749,-460.0,0.00024931,2]
[370403371,1752000673760,-510.56,0.00024931,2]
[370403372,1752000673770,-460.0,0.00024931,2]
[370403373,1752000673781,-460.0,0.00024931,2]
[370403374,1752000673793,-607.68,0.00024931,2]
[370403375,1752000673804,-460.0,0.00024931,2]
[370403376,1752000673814,-733.58,0.00024931,2]
[370403377,1752000673825,-965.27,0.00024931,2]
[370403378,1752000673835,-460.0,0.00024931,2]
[370403379,1752000673845,-1349.41,0.00024931,2]
[370403380,1752000673855,-947.31,0.00024931,2]
[370403381,1752000673865,-511.02,0.00024931,2]
[370403382,1752000673876,-176.8632041,0.00024931,2]
[370403383,1752000673886,-739.76,0.00024931,2]
[370403384,1752000673900,-824.54,0.00024931,2]
[370403385,1752000673911,-767.81,0.00024931,2]
[370403386,1752000673922,-460.0,0.00024931,2]
[370403387,1752000673932,-460.0,0.00024931,2]
[370403388,1752000673943,-563.08,0.00024931,2]
[370403389,1752000673954,-460.0,0.00024931,2]
[370403390,1752000673966,-694.44,0.00024931,2]
[370403391,1752000673976,-691.48,0.00024931,2]
[370403392,1752000673986,-344.78515358,0.00024931,2]
[370403393,1752000673996,-1231.77,0.00024931,2]
[370403394,1752000674006,-460.0,0.00024931,2]
[370403395,1752000674018,-460.0,0.00024931,2]
[370403396,1752000674028,-337.8777838,0.00024931,2]
[370403397,1752000674038,-460.0,0.00024931,2]
[370403398,1752000674048,-460.0,0.00024931,2]
[370403399,1752000674058,-537.66,0.00024931,2]
[370403400,1752000674067,-460.0,0.00024931,2]
[370403401,1752000674077,-460.0,0.00024931,2]
[370403402,1752000674087,-472.62,0.00024931,2]
[370403403,1752000674096,-460.0,0.00024931,2]
[370403404,1752000674106,-689.09,0.00024931,2]
[370403405,1752000674116,-500.0,0.00024931,2]
[370403406,1752000674126,-460.0,0.00024931,2]
[370403407,1752000674136,-577.73,0.00024931,2]
[370403408,1752000674146,-460.0,0.00024931,2]
[370403409,1752000674155,-690.58,0.00024931,2]
[370403410,1752000674165,-460.0,0.00024931,2]
[370403411,1752000674176,-602.43,0.00024931,2]
[370403412,1752000674186,-385.51943646,0.00024931,2]
[370403413,1752000674196,-571.26,0.00024931,2]
[370403414,1752000674207,-464.97,0.00024931,2]
[370403415,1752000674219,-460.0,0.00024931,2]
[370403416,1752000674231,-997.83,0.00024931,2]
[370403417,1752000674243,-469.04910522,0.00024931,2]
[370403418,1752000674254,-460.0,0.00024931,2]
[370403419,1752000674265,-460.0,0.00024931,2]
[370403420,1752000674439,-460.0,0.00024931,2]
[370403421,1752000674449,-266.56688762,0.00024931,2]
[370403422,1752000674461,-937.08,0.00024931,2]
[370403423,1752000674471,-900.4,0.00024931,2]
[370403424,1752000674480,-460.0,0.00024931,2]
[370403425,1752000674489,-460.0,0.00024931,2]
[370403426,1752000674499,-460.0,0.00024931,2]
[370403427,1752000674510,-460.0,0.00024931,2]
[370403428,1752000674521,-876.29,0.00024931,2]
[370403429,1752000674532,-460.0,0.00024931,2]
[370403430,1752000674542,-661.75,0.00024931,2]
[370403431,1752000674550,-552.7,0.00024931,2]
[370403432,1752000674556,-460.0,0.00024931,2]
[370403433,1752000674563,-634.69,0.00024931,2]
[370403434,1752000674571,-518.32,0.00024931,2]
[370403435,1752000674577,-460.0,0.00024931,2]
[370403436,1752000674585,-460.0,0.00024931,2]
[370403437,1752000674592,-460.0,0.00024931,2]
[370403438,1752000674599,-860.03,0.00024931,2]
[370403439,1752000674605,-477.79,0.00024931,2]
[370403440,1752000674612,-662.44,0.00024931,2]
[370403441,1752000674618,-460.0,0.00024931,2]
[370403442,1752000674625,-709.37,0.00024931,2]
[370403443,1752000674631,-1140.5,0.00024931,2]
[370403444,1752000674638,-460.0,0.00024931,2]
[370403445,1752000674644,-460.0,0.00024931,2]
[370403446,1752000674651,-269.51948275,0.00024931,2]
[370403447,1752000674657,-460.0,0.00024931,2]
[370403448,1752000674663,-460.0,0.00024931,2]
[370403449,1752000674670,-631.12,0.00024931,2]
[370403450,1752000674677,-460.0,0.00024931,2]
[370403451,1752000674683,-593.27,0.00024931,2]
[370403452,1752000674690,-670.05,0.00024931,2]
[370403453,1752000674697,-460.0,0.00024931,2]
[370403454,1752000674704,-460.0,0.00024931,2]
[370403455,1752000674711,-460.0,0.00024931,2]
[370403456,1752000674718,-737.78,0.00024931,2]
[370403457,1752000674725,-460.0,0.00024931,2]
[370403458,1752000674731,-669.13,0.00024931,2]
[370403459,1752000674738,-481.52,0.00024931,2]
[370403460,1752000674744,-460.0,0.00024931,2]
[370403461,1752000674751,-1228.54,0.00024931,2]
[370403462,1752000674757,-464.22,0.00024931,2]
[370403463,1752000674763,-551.87,0.00024931,2]
[370403464,1752000674769,-460.0,0.00024931,2]
[370403465,1752000674776,-460.0,0.00024931,2]
[370403466,1752000674783,-460.0,0.00024931,2]
[370403467,1752000674791,-460.0,0.00024931,2]
[370403468,1752000674801,-538.09,0.00024931,2]
[370403469,1752000674811,-460.0,0.00024931,2]
[370403470,1752000674820,-460.0,0.00024931,2]
[370403471,1752000674830,-460.0,0.00024931,2]
[370403472,1752000674839,-460.0,0.00024931,2]
[370403473,1752000674849,-460.0,0.00024931,2]
[370403474,1752000674858,-460.0,0.00024931,2]
[370403475,1752000674867,-556.19,0.00024931,2]
[370403476,1752000674877,-460.0,0.00024931,2]
[370403477,1752000674887,-514.5,0.00024931,2]
[370403478,1752000674897,-533.59,0.00024931,2]
[370403479,1752000674906,-460.0,0.00024931,2]
[370403480,1752000674916,-460.0,0.00024931,2]
[370403481,1752000674926,-460.0,0.00024931,2]
[370403482,1752000674935,-686.53,0.00024931,2]
[370403483,1752000674945,-460.0,0.00024931,2]
[370403484,1752000674955,-460.0,0.00024931,2]
[370403485,1752000674964,-520.15,0.00024931,2]
[370403486,1752000674974,-477.62,0.00024931,2]
[370403487,1752000674984,-460.0,0.00024931,2]
[370403488,1752000674993,-460.0,0.00024931,2]
[370403489,1752000675003,-768.33,0.00024931,2]
[370403490,1752000675012,-460.0,0.00024931,2]
[370403491,1752000675022,-576.11,0.00024931,2]
[370403492,1752000675031,-464.57,0.00024931,2]
[370403493,1752000675041,-460.0,0.00024931,2]
[370403494,1752000675050,-893.76,0.00024931,2]
[370403495,1752000675059,-460.0,0.00024931,2]
[370403496,1752000675069,-570.52,0.00024931,2]
[370403497,1752000675078,-535.27,0.00024931,2]
[370403498,1752000675087,-460.0,0.00024931,2]
[370403499,1752000675097,-1099.39,0.00024931,2]
[370403500,1752000675106,-460.0,0.00024931,2]
[370403501,1752000675116,-190.10702641,0.00024931,2]
[370403502,1752000675125,-460.0,0.00024931,2]
[370403503,1752000675133,-1027.25,0.00024931,2]
[370403504,1752000675141,-586.06809688,0.00024931,2]
[370403505,1752000675150,-460.0,0.00024931,2]
[370403506,1752000675159,-812.7,0.00024931,2]
[370403507,1752000675170,-235.07765134,0.00024931,2]
[370403508,1752000675180,-628.68,0.00024931,2]
[370403509,1752000675189,-660.46,0.00024931,2]
[370403510,1752000675199,-460.0,0.00024931,2]
[370403511,1752000675209,-719.38,0.00024931,2]
[370403512,1752000675218,-1107.1,0.00024931,2]
[370403513,1752000675229,-687.52,0.00024931,2]
[370403514,1752000675240,-460.0,0.00024931,2]
[370403515,1752000675251,-548.05,0.00024931,2]
[370403516,1752000675261,-460.0,0.00024931,2]
[370403517,1752000675272,-460.0,0.00024931,2]
[370403518,1752000675282,-460.0,0.00024931,2]
[370403519,1752000675294,-460.0,0.00024931,2]
[370403520,1752000675304,-604.87,0.00024931,2]
[370403521,1752000675314,-542.25,0.00024931,2]
[370403522,1752000675324,-511.76,0.00024931,2]
[370403523,1752000675334,-460.0,0.00024931,2]
[370403524,1752000675343,-1699.45,0.00024931,2]
[370403525,1752000675353,-460.0,0.00024931,2]
[370403526,1752000675362,-210.0,0.00024931,2]
[370403527,1752000675372,-460.0,0.00024931,2]
[370403528,1752000675381,-460.0,0.00024931,2]
[370403529,1752000675394,-460.0,0.00024931,2]
[370403530,1752000675403,-1500.0,0.00024931,2]
[370403531,1752000675410,-860.89,0.00024931,2]
[370403532,1752000675419,-602.33,0.00024931,2]
[370403533,1752000675430,-460.0,0.00024931,2]
[370403534,1752000675439,-565.74,0.00024931,2]
[370403535,1752000675448,-460.0,0.00024931,2]
[370403536,1752000675456,-460.0,0.00024931,2]
[370403537,1752000675466,-1161.14,0.00024931,2]
[370403538,1752000675476,-2333.31,0.00024931,2]
[370403539,1752000675486,-325.97525433,0.00024931,2]
[370403540,1752000675495,-731.26,0.00024931,2]
[370403541,1752000675504,-460.0,0.00024931,2]
[370403542,1752000675513,-665.77,0.00024931,2]
[370403543,1752000675523,-249.25332122,0.00024931,2]
[370403544,1752000675532,-1544.03,0.00024931,2]
[370403545,1752000675541,-460.0,0.00024931,2]
[370403546,1752000675551,-460.0,0.00024931,2]
[370403547,1752000675561,-1006.28,0.00024931,2]
[370403548,1752000675570,-460.0,0.00024931,2]
[370403549,1752000675580,-460.78,0.00024931,2]
[370403550,1752000675589,-815.55,0.00024931,2]
[370403551,1752000675598,-514.67,0.00024931,2]
[370403552,1752000675608,-460.0,0.00024931,2]
[370403553,1752000675617,-460.0,0.00024931,2]
[370403554,1752000675626,-460.0,0.00024931,2]
[370403555,1752000675636,-493.7,0.00024931,2]
[370403556,1752000675645,-2120.95,0.00024931,2]
[370403557,1752000675655,-543.28,0.00024931,2]
[370403558,1752000675665,-460.0,0.00024931,2]
[370403559,1752000675674,-670.83,0.00024931,2]
[370403560,1752000675685,-460.0,0.00024931,2]
[370403561,1752000675695,-460.0,0.00024931,2]
[370403562,1752000675704,-460.0,0.00024931,2]
[370403563,1752000675715,-875.51,0.00024931,2]
[370403564,1752000675724,-460.0,0.00024931,2]
[370403565,1752000675734,-460.0,0.00024931,2]
[370403566,1752000675743,-2014.63,0.00024931,2]
[370403567,1752000675753,-1914.44,0.00024931,2]
[370403568,1752000675762,-832.21,0.00024931,2]
[370403569,1752000675771,-460.0,0.00024931,2]
[370403570,1752000675780,-460.0,0.00024931,2]
[370403571,1752000675790,-460.0,0.00024931,2]
[370403572,1752000675799,-194.87858392,0.00024931,2]
[370403573,1752000675809,-460.0,0.00024931,2]
[370403574,1752000675819,-460.0,0.00024931,2]
[370403575,1752000675829,-460.0,0.00024931,2]
[370403576,1752000675838,-564.87997962,0.00024931,2]
[370403577,1752000675847,-495.1536342,0.00024931,2]
[370403578,1752000675857,-628.48,0.00024931,2]
[370403579,1752000675867,-460.0,0.00024931,2]
[370403580,1752000675877,-744.77,0.00024931,2]
[370403581,1752000675887,-460.0,0.00024931,2]
[370403582,1752000675898,-1862.36,0.00024931,2]
[370403583,1752000675907,-1116.61,0.00024931,2]
[370403584,1752000675917,-460.0,0.00024931,2]
[370403585,1752000675927,-1749.79,0.00024931,2]
[370403586,1752000675936,-460.0,0.00024931,2]
[370403587,1752000675946,-460.0,0.00024931,2]
[370403588,1752000675956,-460.0,0.00024931,2]
[370403589,1752000675965,-460.0,0.00024931,2]
[370403590,1752000675975,-2619.13,0.00024931,2]
[370403591,1752000675984,-460.0,0.00024931,2]
[370403592,1752000675994,-1813.74,0.00024931,2]
[370403593,1752000676003,-1554.33,0.00024931,2]
[370403594,1752000676013,-460.0,0.00024931,2]
[370403595,1752000676022,-490.71,0.00024931,2]
[370403596,1752000676032,-493.05,0.00024931,2]
[370403597,1752000676042,-460.0,0.00024931,2]
[370403598,1752000676051,-460.0,0.00024931,2]
[370403599,1752000676061,-460.0,0.00024931,2]
[370403600,1752000676070,-460.0,0.00024931,2]
[370403601,1752000676079,-460.0,0.00024931,2]
[370403602,1752000676088,-460.0,0.00024931,2]
[370403603,1752000676097,-460.0,0.00024931,2]
[370403604,1752000676107,-1136.92,0.00024931,2]
[370403605,1752000676118,-460.0,0.00024931,2]
[370403606,1752000676129,-1502.49,0.00024931,2]
[370403607,1752000676139,-421.02954922,0.00024931,2]
[370403608,1752000676149,-883.85,0.00024931,2]
[370403609,1752000676160,-1306.22,0.00024931,2]
[370403610,1752000676170,-460.0,0.00024931,2]
[370403611,1752000676179,-2765.15,0.00024931,2]
[370403612,1752000676188,-1062.85,0.00024931,2]
[370403613,1752000676197,-460.0,0.00024931,2]
[370403614,1752000676206,-1353.72,0.00024931,2]
[370403615,1752000676215,-519.68,0.00024931,2]
[370403616,1752000676225,-891.72,0.00024931,2]
[370403617,1752000676234,-460.0,0.00024931,2]
[370403618,1752000676243,-975.26,0.00024931,2]
[370403619,1752000676252,-460.0,0.00024931,2]
[370403620,1752000676261,-1509.83,0.00024931,2]
[370403621,1752000676271,-460.0,0.00024931,2]
[370403622,1752000676280,-609.44,0.00024931,2]
[370403623,1752000676289,-460.0,0.00024931,2]
[370403624,1752000676298,-460.0,0.00024931,2]
[370403625,1752000676308,-1533.5,0.00024931,2]
[370403626,1752000676317,-611.61,0.00024931,2]
[370403627,1752000676326,-460.0,0.00024931,2]
[370403628,1752000676335,-2502.38,0.00024931,2]
[370403629,1752000676344,-460.48,0.00024931,2]
[370403630,1752000676353,-460.0,0.00024931,2]
[370403631,1752000676363,-802.91,0.00024931,2]
[370403632,1752000676372,-2831.51,0.00024931,2]
[370403633,1752000676383,-793.61,0.00024931,2]
[370403634,1752000676395,-1732.85,0.00024931,2]
[370403635,1752000676405,-909.21,0.00024931,2]
[370403636,1752000676414,-1591.36,0.00024931,2]
[370403637,1752000676423,-460.0,0.00024931,2]
[370403638,1752000676433,-461.55,0.00024931,2]
[370403639,1752000676442,-638.62,0.00024931,2]
[370403640,1752000676451,-460.0,0.00024931,2]
[370403641,1752000676460,-460.0,0.00024931,2]
[370403642,1752000676470,-521.41356252,0.00024931,2]
[370403643,1752000676479,-460.0,0.00024931,2]
[370403644,1752000676488,-460.0,0.00024931,2]
[370403645,1752000676498,-460.0,0.00024931,2]
[370403646,1752000676507,-482.27,0.00024931,2]
[370403647,1752000676516,-2366.74,0.00024931,2]
[370403648,1752000676525,-490.37,0.00024931,2]
[370403649,1752000676534,-1878.78,0.00024931,2]
[370403650,1752000676543,-460.0,0.00024931,2]